Cogmind - Beta 14 @@@ ROGUE MODE // 2025.04.30 @ 19:36:42 Player: VVRLD_D35TR0YER Result: Smashed by cave-in Performance ------------- Evolutions (0) 0 Regions Visited (1) 200 Robots Destroyed (18) 90 Value Destroyed (356) 356 Prototype IDs (0) 0 Alien Tech Used (0) 0 Bonus (0) 0 TOTAL SCORE: 646 Bonus ------- None Cogmind --------- Core Integrity 0/250 Matter 295/300 Energy 100/100 System Corruption 21% Temperature Cool (0) Movement Core (450) Ox8 Location -10/Materials Parts ------- > --- POWER (1) -------- (None) > --- PROPULSION (2) --- (None) > --- UTILITY (2) ------ Large Storage Unit Light Armor Plating > --- WEAPON (2) ------- EM Pulse Gun > --- INVENTORY (15) --- Ion Engine Light Ion Engine Light Treads Light Treads Wheel Heat Sink Small Storage Unit High-capacity Storage Unit Light Armor Plating EM Pulse Gun EM Pulse Gun EM Pulse Gun EM Pulse Gun Assault Rifle Assault Rifle Peak State ------------ > --- POWER ------------ Ion Engine > --- PROPULSION ------- Aluminum Leg Aluminum Leg > --- UTILITY ---------- Large Storage Unit Visual Processing Unit > --- WEAPON ----------- EM Pulse Gun EM Pulse Gun > --- INVENTORY -------- Light Ion Engine Light Treads Light Treads Wheel Compact Wheel Heat Sink Small Storage Unit High-capacity Storage Unit EM Pulse Gun EM Pulse Gun EM Pulse Gun EM Pulse Gun EM Pulse Gun Assault Rifle Assault Rifle [Rating: 9] Favorites ----------- Power Ion Engine Engine Ion Engine Propulsion Aluminum Leg Treads Light Treads Leg Aluminum Leg Utility Large Storage Unit Storage Large Storage Unit Processor Visual Processing Unit Protection Light Armor Plating Weapon EM Pulse Gun Energy Gun EM Pulse Gun Ballistic Gun Assault Rifle Build | -11 -10 ------- Run | Yrd Mat Slots Evolved . | . . Power . | . . Propulsion . | . . Utility . | . . Weapon . | . . Parts Attached 20 | 9 11 Power 3 | 2 1 Engine 3 | 2 1 Core . | . . Reactor . | . . Propulsion 7 | 4 3 Treads 2 | 2 . Leg 5 | 2 3 Wheel . | . . Hover . | . . Flight . | . . Utility 4 | 1 3 Device . | . . Storage 2 | 1 1 Processor 1 | . 1 Hackware . | . . Protection 1 | . 1 Artifact . | . . Weapon 6 | 2 4 Energy Gun 4 | . 4 Energy Cannon . | . . Ballistic Gun 2 | 2 . Ballistic Cannon . | . . Launcher . | . . Special Weapon . | . . Impact Weapon . | . . Slashing Weapon . | . . Piercing Weapon . | . . Special Melee Weapon . | . . Unidentified Prototypes . | . . Parts Lost 5 | . 5 Power 1 | . 1 Propulsion 2 | . 2 Utility . | . . Weapon 2 | . 2 Highest Loss Streak 3 | . 3 To Critical Strikes . | . . Average Slot Usage (%) 92 | . 92 Engine 11 | . 11 Treads 1 | . 1 Leg 23 | . 23 Storage 18 | . 18 Processor 3 | . 3 Protection 5 | . 5 Energy Gun 26 | . 26 Peak Build Rating 9 | 6 9 Average Rating 7 | 4 7 On Entrance 3 | . 6 Naked Turns . | . . Heaviest Build 34 | 14 34 Greatest Support 40 | 40 40 Greatest Overweight (x) 1 | 1 1 Average Overweight (x) . | . . Largest Inventory Capacity 15 | 8 15 Average Capacity 13 | 7 14 Most Carried 15 | 6 15 Average Carried 12 | 3 13 Final Capacity 15 | 8 15 Final Carried 15 | 6 15 Class Distribution -------------------- 100% | Mutant Dominant Class ---------------- Mutant | -10/Materials Resources | -11 -10 ----------- Run | Yrd Mat Matter Collected 374 | 205 169 Remotely . | . . Salvage Created 660 | . 660 Parts 43 | . 43 Haulers Intercepted 1 | . 1 Recyclers Shooed 1 | . 1 Parts Field Recycled . | . . Retrieved Matter . | . . Parts Self-Destructed . | . . Prevented . | . . Kills | -11 -10 ------- Run | Yrd Mat Combat Hostiles Destroyed 10 | . 10 Guns 6 | . 6 AOE 4 | . 4 Classes Destroyed 7 | . 7 Worker 1 | . 1 Builder 4 | . 4 Hauler 1 | . 1 Recycler 1 | . 1 Watcher 1 | . 1 Swarmer 3 | . 3 Grunt 7 | . 7 Best Kill Streak 5 | . 5 Combat Bots Only 3 | . 3 Max Kills in Single Turn 2 | . 2 Gunslinging . | . . Exploded 2 | . 2 Melee . | . . Uniques/NPCs Destroyed . | . . Combat | -11 -10 -------- Run | Yrd Mat Hostile Shots Fired 39 | . 39 Missed 10 | . 10 Damage Taken 1025 | . 1025 Core 304 | . 304 Absorbed by Shields . | . . Regen/Repaired (Parts) 43 | . 43 Core Remaining (%) 100 | 100 . Volleys Fired 42 | . 42 Largest 2 | . 2 Hottest 80 | . 80 Shots Fired 85 | . 85 Gun 85 | . 85 Cannon . | . . Launcher . | . . Special . | . . Kinetic . | . . Thermal . | . . Explosive . | . . Electromagnetic 85 | . 85 Robot Hit Streak 10 | . 10 Robot Miss Streak 6 | . 6 Penetration Max . | . . Secondary Targets . | . . Shots Hit Robots 52 | . 52 Core Hits 28 | 1 27 Critical Kills . | . . Critical Parts Destroyed . | . . Critical Strikes 4 | . 4 Corrupt 4 | . 4 Melee Attacks . | . . Impact . | . . Slashing . | . . Piercing . | . . Sneak Attacks . | . . Combat Hostiles . | . . Follow-up Attacks . | . . Damage Inflicted 1108 | 5 1103 Guns 767 | . 767 Cannons . | . . Explosions 328 | . 328 Melee . | . . Ramming 13 | 5 8 Kinetic . | . . Thermal 328 | . 328 Explosive . | . . Electromagnetic 767 | . 767 Impact . | . . Slashing . | . . Piercing . | . . Highest Corruption 16 | . 16 Average Corruption 6 | . 6 Corruption Purged . | . . Corruption Blocked . | . . Effects 8 | . 8 Message Errors 4 | . 4 Matter Fused 1 | . 1 Data Loss (minor) 2 | . 2 Misfires 1 | . 1 Overload Shots . | . . Overflow Damage 4 | . 4 Projectiles . | . . Explosions 4 | . 4 Melee . | . . Knockbacks . | . . Impact . | . . Kinetic . | . . Secondary . | . . Self-Inflicted Damage 91 | . 91 Shots 4 | . 4 Rammed . | . . Targets Rammed 3 | 1 2 Kicked 3 | 1 2 Crushed . | . . Highest Temperature 144 | . 144 Average Temperature 52 | . 52 Received Heat Transfer 99 | . 99 Siege Activations . | . . Robots Corrupted 1 | . 1 Combat Hostiles . | . . Parts Fried 3 | . 3 Impact Corruptions . | . . Robots Melted . | . . Combat Hostiles . | . . Parts Melted . | . . Heat Transferred 450 | . 450 Parts Sabotaged . | . . Parts Stolen . | . . Parts Stripped . | . . Power Chain Reactions 8 | . 8 Alert | -11 -10 ------- Run | Yrd Mat Peak Influence 277 | . 277 Initial . | . . Average 99 | . 111 Maximum Alert Level 1 | . 1 Low Security (%) 86 | 100 84 Level 1 13 | . 15 Level 2 . | . . Level 3 . | . . Level 4 . | . . Level 5 . | . . High Security . | . . Max Security . | . . Squads Dispatched 2 | . 2 Investigation 1 | . 1 Extermination . | . . Reinforcement 1 | . 1 Assault . | . . Garrison . | . . Intercept . | . . Searches Triggered . | . . Construction Impeded . | . . Haulers Reinforced . | . . Active Scanning Responses . | . . Cargo Convoy Interrupts . | . . Stealth | -11 -10 --------- Run | Yrd Mat Distress Signals 1 | . 1 Communications Jammed . | . . Distress Signals . | . . Times Spotted 16 | . 16 Peak Tracking Total 4 | . 4 Tactical Retreats 3 | . 3 Traps | -11 -10 ------- Run | Yrd Mat Traps Triggered . | . . Indirectly . | . . Trap Hack Attempts . | . . Triggered . | . . Disarmed . | . . Reprogrammed . | . . Reused . | . . Traps Extracted . | . . Installed . | . . Triggered . | . . Machines | -11 -10 ---------- Run | Yrd Mat Machines Disabled 3 | . 3 Max in Single Turn 1 | . 1 Machines Repaired . | . . Machines Dismantled . | . . Machines Sabotaged . | . . Overloaded Fab Kills . | . . Hacking | -11 -10 --------- Run | Yrd Mat Machines Accessed 4 | . 4 Terminals 2 | . 2 Fabricators . | . . Repair Stations 1 | . 1 Recycling Units 1 | . 1 Scanalyzers . | . . Garrison Access . | . . Total Hacks 9 | . 9 Successful 5 | . 5 Failed 4 | . 4 Catastrophic 1 | . 1 Database Lockouts . | . . Manual 1 | . 1 Terminals 4 | . 4 Fabricators . | . . Repair Stations 4 | . 4 Recycling Units 1 | . 1 Scanalyzers . | . . Garrison Access . | . . Terminal Hacks . | . . Fabricator Hacks . | . . Repair Station Hacks 4 | . 4 Scan Component 2 | . 2 Repair 2 | . 2 Recycling Unit Hacks 1 | . 1 Report Inventory 1 | . 1 Scanalyzer . | . . Garrison Access Hacks . | . . Unauthorized Hacks . | . . Terminals . | . . Fabricators . | . . Repair Stations . | . . Recycling Units . | . . Scanalyzers . | . . Garrison Access . | . . Data Cores Recovered . | . . Used . | . . Hacking Detections 3 | . 3 Full Trace Events 2 | . 2 Feedback Events 1 | . 1 Corruption 1 | . 1 Feedback Blocked . | . . Robot Schematics Acquired . | . . Robots Built . | . . Authchips . | . . Time . | . . Total Robot Build Rating . | . . Part Schematics Acquired . | . . Parts Built . | . . Authchips . | . . Time . | . . Total Part Build Rating . | . . Parts Repaired 2 | . 2 Time 52 | . 52 Parts Recycled . | . . Recycled Matter . | . . Retrieved Matter . | . . Retrieved Components . | . . Parts Scanalyzed . | . . Part Schematics Acquired . | . . Parts Damaged . | . . Bothacking | -11 -10 ------------ Run | Yrd Mat Used RIF Installer . | . . Robots Hacked . | . . Non-combat . | . . Combat . | . . Robot Hacks Applied . | . . Relay Couplers Released . | . . Fabnet Peak Effective % . | . . Robots Rewired . | . . Allies Hacked . | . . Hacks Repelled . | . . Allies | -11 -10 -------- Run | Yrd Mat Total Allies . | . . Largest Group . | . . Highest-Rated Group . | . . Highest-Rated Ally . | . . Total Orders . | . . Ally Attacks . | . . Total Damage . | . . Kills . | . . Allies Corrupted . | . . Allies Melted . | . . Intel | -11 -10 ------- Run | Yrd Mat Robot Analysis Total . | . . Derelict Logs Recovered . | . . Drone Launches . | . . Drone Recoveries . | . . Exploration | -11 -10 ------------- Run | Yrd Mat Turns Passed 1031 | 109 922 Spaces Moved 326 | 63 263 Core 5 | 5 . Treads 60 | 39 21 Legs 261 | 19 242 Wheels . | . . Hover . | . . Flight . | . . Fastest Speed 50 | 50 120 Average Speed 176 | 142 184 Slowest Speed 190 | 160 190 Overloaded Moves . | . . Propulsion Burnouts . | . . Robots Hopped . | . . Cave-ins Triggered 2 | . 2 Exploration Rate (%) 20 | 4 37 Regions Visited 1 Branch Regions . Pre-discovered Areas . | . . Known Exits Taken . | . . Unknown Exits Taken 1 | 1 . Scrap Searched . | . . Spaces Dug . | . . Terrain Destroyed 23 | . 23 Melee . | . . Projectile . | . . AOE 23 | . 23 Terrain Rammed . | . . Walls Destroyed . | . . Machines Disabled . | . . Actions | -11 -10 --------- Run | Yrd Mat Total 689 | 78 611 Wait 277 | . 277 Move 324 | 62 262 Hop . | . . Pick Up 17 | 6 11 Fast Attach 11 | 6 5 Attach 1 | . 1 Detach 2 | . 2 Swap 8 | 3 5 Drop 3 | . 3 Fire 42 | . 42 Melee . | . . Ram . | . . Kick 3 | 1 2 Crush . | . . Escape Stasis 1 | . 1 Rewire . | . . Trap . | . . Miscellaneous . | . . Route ------- -11/Scrapyard -10/Materials (discovered 2 exits: [*Mat] / [*Min]) History --------- Turn | Location | Event 6 | -11/Scrapyard | Discovered new exit (range 15) 110 | -11/Scrapyard | Entered Materials 137 | -10/Materials | Discovered new exit (range 13) 301 | -10/Materials | Build established: Mutant 327 | -10/Materials | Discovered new exit (range 3) 510 | -10/Materials | Repaired EM Pulse Gun 537 | -10/Materials | Repaired Ion Engine 910 | -10/Materials | Crushed by falling debris 911 | -10/Materials | Core integrity fell below 50% 911 | -10/Materials | System corruption reached 10% 941 | -10/Materials | Lost 3 parts (1p2n) 1033 | -10/Materials | Crushed by falling debris 1033 | -10/Materials | Smashed by cave-in Last Messages --------------- 00910_ The unstable cave ceiling collapses. 00910_ Crushed by falling debris. 00910_ Aluminum Leg destroyed. 00910_ System corrupted by crushing effect (+5). 00910_ Ion Engine destroyed. 00910_ System corrupted by crushing effect (+5). 00910_ Aluminum Leg destroyed. 00910_ System corrupted by crushing effect (+5). 00916_ System corrupted: Component data lost. 00933_ AYQNPCAF8CHG6UNFT<4MTWNJW|8J|9A1I4G 00951_ System corrupted: FCS attempts to trigger EM Pulse Gun. 00951_ System corrupted: EM Pulse Gun misfires. 00972_ System corrupted: Matter fused (-10). 00989_ DG2XVXHMC1GVZ=SR3IYW NUW XZOVNNR5NWJD8YV 01009_ System corrupted: Component data lost. 01027_ 4D|G#F3FWO8WDIX0JBG&IGYJ/|XB12#S 01033_ The unstable cave ceiling collapses. 01033_ Crushed by falling debris. 01033_ EM Pulse Gun destroyed. 01033_ System corrupted by crushing effect (+5). Map ----- +----------------------------------------------------+ | ?????????????????????????????????????????????????? | | ?????????????????????????????????????????????????? | | ?????????????????????????????????????????????????? | | ?????????????????????????????????????????????????? | | ?????????????????????????????????????????????????? | | ?????????????????????????????????????????????????? | | ?????????????????????????????????????????????????? | | ?????????????????????????????????????????????????? | | ?????????????????????????????????????????????????? | | ??????????????????????????????######?????????????? | | ??????????????????????????????# ##########???? | | ??????????????????????????????# ##?? | | ??????????????????????????????# ""#? | | ???????????????????????#??????# T"#? | | ?????????????????? ???? ??????? """ """ ""?? | | ??????????????????? ?? ??####### """ """ #??? | | ?????????????????? ??# # """ """ #??? | | ??????????????????""" """??# # = #### | | ??????????????????""" """ ?# # = | | ????????????????# """ """ ?# # !%""" | | ????????????????# ####+### !""" | | ??????????????????? [#= ## """ #### | | ??????????????????##/######[ "T" #??? | | ??????????????????# !%=%% #??? | | ??????????????????# ##### #### | | ??????????????????#???###@# ##### | | ??????????????# ??#????##########?#### | | ???????????????# ## ?????????????##! ||| | | ???????????????# ????#######?#! ||| | | ???????????????#|= * #### #?#! ||| | | ???????????#####%! =%![ #?# *%!= | | ????????? *=!|%![! #?#! !|= | | ?????????????????##*%%=! #?##! | | ??????????????????##+##### #??#### | | ?????????????????????????## ##?????# | | ??????????????????????????# ######## ### | | ??????????????????????????# #?? | | ??????????????????????????# #?? | | ??????????????????????????# #?? | | ??????????????????????????# ######## ### #?? | | ??????????????????????????# ##?????# #? #? | | ??????????????????????????# %######## # # | | ??????????????????????????# # !% # ^ # # | | ??????????????????????????# #! * = #^^^# < # | | ??????????????????????????# + [* # # # | | ??????????????????????????# # !* # #"" ""# | | ??????????????????????????# # "" # ##"!!!"## | | ??????????????????????????# # # #?#"""#?? | | ??????????????????????????# ######## ######### | | ??????????????????????????# # # ## | +----------------------------------------------------+ Best States ------------- Heat Dissipation 25 Energy Generation 10 Energy Capacity 250 Matter Stores 300 Matter Capacity 300 Sight Range 18 Terrain Scan Density 10 Armor Coverage 150 Evasion (%) 50 Recoil Reduction 2 Item Schematics ----------------- None Robot Schematics ------------------ None Fabricated ------------ Nothing Alien Tech Used ----------------- None Achievements -------------- None Challenges ------------ None Game ------ Seed GuidanceTachyonCoupler Manual? 0 Play Time 00:06:18 Cumulative 197.1 hours Start 2025.04.30 @ 19:29:23 End 2025.04.30 @ 19:36:42 Sessions 1 Manual Loads 0 Difficulty Rogue Special Mode None Game No. 207 Rogue 207 Adventurer 0 Explorer 0 Win Type - Total 3 Types 3/0/0/0/0/0/0/0/0 Lore% 70 Gallery% 74 Achievement% 65 Wizard Run 0 Options --------- Layout 0 ASCII 1 Keyboard 1 Movement Numpad Keybinds 0 Fullscreen 2 Font 16/SmallcapsGlow Map View 88x55 Zoom Use 0% Tactical HUD 1 Map Filters NONE Filters NONE Steam X RUN: b3a300e6-9266-4350-a17b-ab0a34e791cd